[Event "Late-Titled-Tuesday-Blitz-February-27-2024"]
[Site "Chess.com"]
[Date "2024.02.27"]
[Round "6"]
[White "CheckBits"]
[Black "rdarruda"]
[Result "1/2-1/2"]
[WhiteElo "2376"]
[BlackElo "2507"]
[TimeControl "180+1"]
[EndTime "15:05:33 PST"]
[Termination "Game drawn by repetition"]

1. d4 {[%clk 0:03:00.2]} 1... Nf6 {[%clk 0:02:52.5]} 2. Nf3 {[%clk 0:03:01.1]}
2... e6 {[%clk 0:02:52.3]} 3. Bf4 {[%clk 0:03:00.9]} 3... d5 {[%clk 0:02:52.5]}
4. e3 {[%clk 0:03:00.6]} 4... c5 {[%clk 0:02:52.5]} 5. Nbd2 {[%clk 0:03:00.9]}
5... Nc6 {[%clk 0:02:52.4]} 6. c3 {[%clk 0:03:00.2]} 6... Bd6 {[%clk 0:02:52.4]}
7. Bxd6 {[%clk 0:02:57.8]} 7... Qxd6 {[%clk 0:02:53.3]} 8. Bd3 {[%clk
0:02:56.6]} 8... O-O {[%clk 0:02:52.8]} 9. O-O {[%clk 0:02:56.7]} 9... e5 {[%clk
0:02:53.4]} 10. dxc5 {[%clk 0:02:50.4]} 10... Qxc5 {[%clk 0:02:52.6]} 11. e4
{[%clk 0:02:49.6]} 11... Bg4 {[%clk 0:02:48.5]} 12. Qb3 {[%clk 0:02:41.2]} 12...
Rfd8 {[%clk 0:02:46.6]} 13. Rfe1 {[%clk 0:02:30.9]} 13... d4 {[%clk 0:02:30.2]}
14. Rac1 {[%clk 0:02:11.5]} 14... dxc3 {[%clk 0:02:23.4]} 15. Rxc3 {[%clk
0:02:10.8]} 15... Qb6 {[%clk 0:02:23.2]} 16. Ng5 {[%clk 0:01:54.1]} 16... Qxb3
{[%clk 0:02:20.7]} 17. Rxb3 {[%clk 0:01:54.1]} 17... h6 {[%clk 0:02:12]} 18.
Ngf3 {[%clk 0:01:43]} 18... Be6 {[%clk 0:02:11.8]} 19. Bc4 {[%clk 0:01:39.2]}
19... Bxc4 {[%clk 0:01:53.3]} 20. Nxc4 {[%clk 0:01:39.3]} 20... b6 {[%clk
0:01:51]} 21. Ncxe5 {[%clk 0:01:38.9]} 21... Nxe5 {[%clk 0:01:51]} 22. Nxe5
{[%clk 0:01:39]} 22... Re8 {[%clk 0:01:51.2]} 23. Rb5 {[%clk 0:01:36.1]} 23...
Rac8 {[%clk 0:01:50.1]} 24. f4 {[%clk 0:01:23.8]} 24... Rc2 {[%clk 0:01:46.4]}
25. a4 {[%clk 0:01:17.8]} 25... Rd8 {[%clk 0:01:41.1]} 26. Nf3 {[%clk
0:01:16.8]} 26... Rdc8 {[%clk 0:01:22.2]} 27. e5 {[%clk 0:01:09.3]} 27... Ng4
{[%clk 0:01:22.1]} 28. h3 {[%clk 0:01:03.1]} 28... Nf2 {[%clk 0:01:22.3]} 29. e6
{[%clk 0:00:58.5]} 29... Nd3 {[%clk 0:01:22]} 30. exf7+ {[%clk 0:00:57.1]} 30...
Kxf7 {[%clk 0:01:22.9]} 31. Ne5+ {[%clk 0:00:57.3]} 31... Nxe5 {[%clk
0:01:23.1]} 32. Rexe5 {[%clk 0:00:55]} 32... Rd2 {[%clk 0:01:22.9]} 33. Red5
{[%clk 0:00:48.7]} 33... Rcc2 {[%clk 0:01:22.4]} 34. Rxd2 {[%clk 0:00:48.4]}
34... Rxd2 {[%clk 0:01:23.3]} 35. a5 {[%clk 0:00:45.9]} 35... bxa5 {[%clk
0:01:20.6]} 36. Rxa5 {[%clk 0:00:46.2]} 36... Rxb2 {[%clk 0:01:19]} 37. Rxa7+
{[%clk 0:00:46.3]} 37... Kf6 {[%clk 0:01:17.7]} 38. Kh2 {[%clk 0:00:42.6]} 38...
Rb3 {[%clk 0:01:17.6]} 39. Ra5 {[%clk 0:00:40.1]} 39... g6 {[%clk 0:01:16.2]}
40. Kg1 {[%clk 0:00:39.3]} 40... h5 {[%clk 0:01:15.3]} 41. Kh2 {[%clk
0:00:38.3]} 41... Rc3 {[%clk 0:01:05.4]} 42. Rb5 {[%clk 0:00:37.5]} 42... Rd3
{[%clk 0:01:05.2]} 43. Rg5 {[%clk 0:00:35.1]} 43... Rc3 {[%clk 0:01:04.3]} 44.
Rg3 {[%clk 0:00:34.2]} 44... Rc4 {[%clk 0:01:04.1]} 45. Rf3 {[%clk 0:00:34.4]}
45... h4 {[%clk 0:01:02.3]} 46. g4 {[%clk 0:00:29.9]} 46... hxg3+ {[%clk
0:01:01.8]} 47. Kxg3 {[%clk 0:00:30.3]} 47... g5 {[%clk 0:00:57.5]} 48. fxg5+
{[%clk 0:00:20]} 48... Kxg5 {[%clk 0:00:58.4]} 49. Rd3 {[%clk 0:00:20.2]} 49...
Rb4 {[%clk 0:00:57.6]} 50. Rd5+ {[%clk 0:00:20.6]} 50... Kg6 {[%clk 0:00:57.7]}
51. Rd6+ {[%clk 0:00:20.7]} 51... Kh5 {[%clk 0:00:56.7]} 52. Rd5+ {[%clk
0:00:20.7]} 52... Kg6 {[%clk 0:00:56.3]} 53. Re5 {[%clk 0:00:20.5]} 53... Rb3+
{[%clk 0:00:54.3]} 54. Kg4 {[%clk 0:00:20.8]} 54... Rb4+ {[%clk 0:00:54.6]} 55.
Kf3 {[%clk 0:00:21.2]} 55... Rb3+ {[%clk 0:00:54.9]} 56. Kg4 {[%clk 0:00:20.3]}
56... Rb4+ {[%clk 0:00:55]} 57. Kg3 {[%clk 0:00:19.6]} 57... Rb3+ {[%clk
0:00:55.1]} 58. Kh4 {[%clk 0:00:20.1]} 58... Rb4+ {[%clk 0:00:55]} 59. Kg3
{[%clk 0:00:20.4]} 1/2-1/2

[Event "Late-Titled-Tuesday-Blitz-February-27-2024"]
[Site "Chess.com"]
[Date "2024.02.27"]
[Round "6"]
[White "katharinareinecke"]
[Black "kalxandria"]
[Result "0-1"]
[WhiteElo "1997"]
[BlackElo "2160"]
[TimeControl "180+1"]
[EndTime "15:05:33 PST"]
[Termination "kalxandria won on time"]

1. e4 {[%clk 0:03:00.9]} 1... e5 {[%clk 0:02:58.6]} 2. Nc3 {[%clk 0:02:58.9]}
2... Nf6 {[%clk 0:02:57.7]} 3. f4 {[%clk 0:02:57.7]} 3... exf4 {[%clk
0:02:57.2]} 4. e5 {[%clk 0:02:46.8]} 4... Ng8 {[%clk 0:02:56.2]} 5. d4 {[%clk
0:02:45.6]} 5... Qh4+ {[%clk 0:02:55.1]} 6. Ke2 {[%clk 0:02:34]} 6... d6 {[%clk
0:02:50.2]} 7. Nf3 {[%clk 0:02:31.5]} 7... Bg4 {[%clk 0:02:48.5]} 8. Bxf4 {[%clk
0:01:37.6]} 8... Bxf3+ {[%clk 0:02:46.8]} 9. Kxf3 {[%clk 0:01:37.7]} 9... Nc6
{[%clk 0:02:31.2]} 10. g3 {[%clk 0:01:24]} 10... Qh5+ {[%clk 0:02:27.5]} 11. g4
{[%clk 0:01:18.2]} 11... Qg6 {[%clk 0:02:20.8]} 12. Bd3 {[%clk 0:01:14.3]} 12...
Nxd4+ {[%clk 0:02:06.7]} 13. Kg3 {[%clk 0:00:59.6]} 13... f5 {[%clk 0:01:51.7]}
14. exd6 {[%clk 0:00:51.9]} 14... Bxd6 {[%clk 0:01:35.4]} 15. Bxd6 {[%clk
0:00:40.9]} 15... cxd6 {[%clk 0:01:34.3]} 16. Nb5 {[%clk 0:00:33.5]} 16... f4+
{[%clk 0:01:04.4]} 17. Kf2 {[%clk 0:00:28.7]} 17... Qf6 {[%clk 0:00:56.3]} 18.
Nc7+ {[%clk 0:00:25.9]} 18... Kd7 {[%clk 0:00:56.1]} 19. Nxa8 {[%clk 0:00:25]}
19... Qh4+ {[%clk 0:00:56.1]} 20. Kf1 {[%clk 0:00:18.1]} 20... Qh3+ {[%clk
0:00:54.9]} 21. Ke1 {[%clk 0:00:13.4]} 21... Qe3+ {[%clk 0:00:53.3]} 22. Be2
{[%clk 0:00:10.2]} 22... Nf3+ {[%clk 0:00:50.2]} 23. Kf1 {[%clk 0:00:10.2]}
23... Nd2+ {[%clk 0:00:48.4]} 24. Kg2 {[%clk 0:00:09.1]} 24... f3+ {[%clk
0:00:45.4]} 25. Bxf3 {[%clk 0:00:08.5]} 25... Nxf3 {[%clk 0:00:40.9]} 26. Qxf3
{[%clk 0:00:08.5]} 26... Qd2+ {[%clk 0:00:40.8]} 27. Qf2 {[%clk 0:00:07.8]}
27... Qd5+ {[%clk 0:00:40.7]} 28. Kg3 {[%clk 0:00:05.8]} 28... Nf6 {[%clk
0:00:39.1]} 29. Qf5+ {[%clk 0:00:05.8]} 29... Qxf5 {[%clk 0:00:38.5]} 30. gxf5
{[%clk 0:00:06.7]} 30... Rxa8 {[%clk 0:00:38.3]} 31. Rad1 {[%clk 0:00:06.5]}
31... d5 {[%clk 0:00:38]} 32. Rhe1 {[%clk 0:00:05.6]} 32... Ne4+ {[%clk
0:00:36.2]} 33. Kg2 {[%clk 0:00:05.2]} 33... Kc6 {[%clk 0:00:36.4]} 34. h4
{[%clk 0:00:03.8]} 34... h5 {[%clk 0:00:35.9]} 35. c4 {[%clk 0:00:03.9]} 35...
Nf6 {[%clk 0:00:35.9]} 36. cxd5+ {[%clk 0:00:03.6]} 36... Nxd5 {[%clk
0:00:36.4]} 37. Re6+ {[%clk 0:00:03.1]} 37... Kc5 {[%clk 0:00:35.1]} 38. f6
{[%clk 0:00:01.1]} 38... gxf6 {[%clk 0:00:34.6]} 0-1

[Event "Late-Titled-Tuesday-Blitz-February-27-2024"]
[Site "Chess.com"]
[Date "2024.02.27"]
[Round "6"]
[White "chessydotcom"]
[Black "laskakid"]
[Result "1-0"]
[WhiteElo "2270"]
[BlackElo "2379"]
[TimeControl "180+1"]
[EndTime "15:05:36 PST"]
[Termination "chessydotcom won on time"]

1. e4 {[%clk 0:03:00.8]} 1... e5 {[%clk 0:02:59.9]} 2. Nf3 {[%clk 0:03:01.1]}
2... Nf6 {[%clk 0:03:00.2]} 3. Nxe5 {[%clk 0:02:59.5]} 3... Nxe4 {[%clk
0:03:00.3]} 4. Qe2 {[%clk 0:02:55.4]} 4... Qe7 {[%clk 0:03:00.4]} 5. Qxe4 {[%clk
0:02:55.7]} 5... d6 {[%clk 0:03:00.8]} 6. d4 {[%clk 0:02:52.2]} 6... dxe5 {[%clk
0:03:00.8]} 7. dxe5 {[%clk 0:02:53.1]} 7... Nc6 {[%clk 0:03:00.5]} 8. Bc4 {[%clk
0:02:45.5]} 8... Nxe5 {[%clk 0:02:41.7]} 9. O-O {[%clk 0:02:40.9]} 9... Nxc4
{[%clk 0:02:25]} 10. Qxc4 {[%clk 0:02:40.8]} 10... Be6 {[%clk 0:02:21.1]} 11.
Qb5+ {[%clk 0:02:29.1]} 11... c6 {[%clk 0:02:21]} 12. Qd3 {[%clk 0:02:19.1]}
12... Qd7 {[%clk 0:02:02.7]} 13. Qf3 {[%clk 0:02:09.1]} 13... Be7 {[%clk
0:01:48]} 14. Nc3 {[%clk 0:02:08.5]} 14... O-O {[%clk 0:01:45.8]} 15. Bf4 {[%clk
0:02:04.1]} 15... Rfd8 {[%clk 0:01:29.9]} 16. Qg3 {[%clk 0:02:00.4]} 16... Bf6
{[%clk 0:01:22.1]} 17. Ne4 {[%clk 0:01:47.1]} 17... Be7 {[%clk 0:01:01.1]} 18.
Be5 {[%clk 0:01:23.3]} 18... f6 {[%clk 0:00:22.1]} 19. Bxf6 {[%clk 0:01:13.9]}
19... g6 {[%clk 0:00:13.7]} 20. Qg5 {[%clk 0:00:55.9]} 20... Re8 {[%clk
0:00:12]} 21. Rad1 {[%clk 0:00:49.1]} 21... Qc7 {[%clk 0:00:10.1]} 22. Bxe7
{[%clk 0:00:36.3]} 22... Rxe7 {[%clk 0:00:08.8]} 23. Nf6+ {[%clk 0:00:35.8]}
23... Kg7 {[%clk 0:00:07.3]} 24. Nh5+ {[%clk 0:00:35.8]} 24... Kg8 {[%clk
0:00:07]} 25. Nf4 {[%clk 0:00:36.3]} 25... Bf7 {[%clk 0:00:05.6]} 26. Nd3 {[%clk
0:00:34.4]} 26... Rae8 {[%clk 0:00:05.4]} 27. Qc5 {[%clk 0:00:33.2]} 27... Bxa2
{[%clk 0:00:04.2]} 28. b3 {[%clk 0:00:32]} 28... b6 {[%clk 0:00:02.5]} 29. Qa3
{[%clk 0:00:31.4]} 29... Re2 {[%clk 0:00:02.2]} 30. Qxa2 {[%clk 0:00:31.4]}
30... c5 {[%clk 0:00:02.5]} 31. b4+ {[%clk 0:00:31.6]} 31... c4 {[%clk
0:00:01.8]} 32. Rfe1 {[%clk 0:00:30.9]} 1-0

[Event "Late-Titled-Tuesday-Blitz-February-27-2024"]
[Site "Chess.com"]
[Date "2024.02.27"]
[Round "6"]
[White "Hrant_ChessMood"]
[Black "Kosak12"]
[Result "1-0"]
[WhiteElo "3003"]
[BlackElo "2801"]
[TimeControl "180+1"]
[EndTime "15:05:37 PST"]
[Termination "Hrant_ChessMood won on time"]

1. Nf3 {[%clk 0:03:00.9]} 1... Nf6 {[%clk 0:02:59.3]} 2. c4 {[%clk 0:03:00.9]}
2... e6 {[%clk 0:02:59.1]} 3. Nc3 {[%clk 0:03:00.2]} 3... d5 {[%clk 0:02:59.3]}
4. d4 {[%clk 0:02:59.9]} 4... h6 {[%clk 0:02:56.1]} 5. e3 {[%clk 0:02:56.2]}
5... Nbd7 {[%clk 0:02:50]} 6. b3 {[%clk 0:02:54.4]} 6... Bb4 {[%clk 0:02:47]} 7.
Bd2 {[%clk 0:02:54.1]} 7... O-O {[%clk 0:02:43.9]} 8. Bd3 {[%clk 0:02:54.2]}
8... b6 {[%clk 0:02:43.3]} 9. O-O {[%clk 0:02:54.1]} 9... Bb7 {[%clk 0:02:42.1]}
10. Nxd5 {[%clk 0:02:48]} 10... Nxd5 {[%clk 0:02:32.1]} 11. cxd5 {[%clk
0:02:47.9]} 11... Bxd2 {[%clk 0:02:28.6]} 12. dxe6 {[%clk 0:02:15.1]} 12... Bxf3
{[%clk 0:01:58.2]} 13. gxf3 {[%clk 0:02:05.3]} 13... Bxe3 {[%clk 0:01:23.5]} 14.
fxe3 {[%clk 0:01:49.4]} 14... fxe6 {[%clk 0:01:22.6]} 15. f4 {[%clk 0:01:47]}
15... c5 {[%clk 0:01:09.1]} 16. Bc4 {[%clk 0:01:46.6]} 16... Qf6 {[%clk
0:00:59.8]} 17. Qg4 {[%clk 0:01:40.5]} 17... Kh8 {[%clk 0:00:42.7]} 18. Qxe6
{[%clk 0:01:40.3]} 18... Qxe6 {[%clk 0:00:32.7]} 19. Bxe6 {[%clk 0:01:41.2]}
19... Nf6 {[%clk 0:00:33.4]} 20. d5 {[%clk 0:01:40.5]} 20... Rad8 {[%clk
0:00:32.6]} 21. Rad1 {[%clk 0:01:39.2]} 21... Ne4 {[%clk 0:00:33]} 22. f5 {[%clk
0:01:34]} 22... g5 {[%clk 0:00:32.2]} 23. fxg6 {[%clk 0:01:30.4]} 23... Kg7
{[%clk 0:00:32.6]} 24. Rf7+ {[%clk 0:01:20.4]} 24... Kxg6 {[%clk 0:00:31.6]} 25.
Rxa7 {[%clk 0:01:20.5]} 25... Kh5 {[%clk 0:00:16.9]} 26. Rf1 {[%clk 0:01:14.1]}
26... Rxf1+ {[%clk 0:00:08.8]} 27. Kxf1 {[%clk 0:01:14.2]} 27... Nc3 {[%clk
0:00:09.5]} 28. Rf7 {[%clk 0:00:55.3]} 28... Kg6 {[%clk 0:00:07.7]} 29. Rf5
{[%clk 0:00:48.3]} 29... Nxa2 {[%clk 0:00:07.7]} 30. Ke2 {[%clk 0:00:37.3]}
30... Nc3+ {[%clk 0:00:05.2]} 31. Kd3 {[%clk 0:00:37]} 31... Nb5 {[%clk
0:00:06]} 32. Rf1 {[%clk 0:00:28]} 32... Nc7 {[%clk 0:00:06]} 33. Ke4 {[%clk
0:00:28.7]} 33... b5 {[%clk 0:00:05]} 34. Ke5 {[%clk 0:00:28.8]} 34... c4 {[%clk
0:00:04.6]} 35. bxc4 {[%clk 0:00:28.9]} 35... bxc4 {[%clk 0:00:05.5]} 36. Rg1+
{[%clk 0:00:28.4]} 36... Kh5 {[%clk 0:00:04.4]} 37. Rc1 {[%clk 0:00:28.9]} 1-0

[Event "Late-Titled-Tuesday-Blitz-February-27-2024"]
[Site "Chess.com"]
[Date "2024.02.27"]
[Round "6"]
[White "aistrel"]
[Black "GilbertoHernandezAmura"]
[Result "0-1"]
[WhiteElo "2535"]
[BlackElo "2456"]
[TimeControl "180+1"]
[EndTime "15:05:37 PST"]
[Termination "GilbertoHernandezAmura won on time"]

1. d4 {[%clk 0:03:00.9]} 1... Nf6 {[%clk 0:02:50.5]} 2. Nc3 {[%clk 0:03:01]}
2... c5 {[%clk 0:02:49.8]} 3. d5 {[%clk 0:03:00]} 3... d6 {[%clk 0:02:40.5]} 4.
e4 {[%clk 0:02:58.7]} 4... g6 {[%clk 0:02:40.9]} 5. Bf4 {[%clk 0:02:58.6]} 5...
Bg7 {[%clk 0:02:40.8]} 6. Qd2 {[%clk 0:02:58.5]} 6... Na6 {[%clk 0:02:12.5]} 7.
Nf3 {[%clk 0:02:28.6]} 7... Nc7 {[%clk 0:02:07.8]} 8. h3 {[%clk 0:02:16.5]} 8...
a6 {[%clk 0:02:05.9]} 9. e5 {[%clk 0:02:00]} 9... dxe5 {[%clk 0:01:50.2]} 10.
Bxe5 {[%clk 0:02:00.9]} 10... O-O {[%clk 0:01:32.2]} 11. O-O-O {[%clk
0:02:00.5]} 11... Nce8 {[%clk 0:01:26.9]} 12. Bf4 {[%clk 0:01:45.9]} 12... b5
{[%clk 0:01:26.7]} 13. Bh6 {[%clk 0:01:39.2]} 13... b4 {[%clk 0:01:24.6]} 14.
Bxg7 {[%clk 0:01:39.5]} 14... bxc3 {[%clk 0:01:20.7]} 15. Qxc3 {[%clk
0:01:36.7]} 15... Kxg7 {[%clk 0:01:18.2]} 16. Qxc5 {[%clk 0:01:37.1]} 16... Bf5
{[%clk 0:01:14.4]} 17. c4 {[%clk 0:01:18.9]} 17... Rc8 {[%clk 0:01:13.1]} 18.
Qd4 {[%clk 0:01:18.1]} 18... Kg8 {[%clk 0:00:58.1]} 19. Bd3 {[%clk 0:01:16.6]}
19... Bxd3 {[%clk 0:00:56.5]} 20. Rxd3 {[%clk 0:01:17.5]} 20... Nd6 {[%clk
0:00:56.7]} 21. b3 {[%clk 0:01:17.6]} 21... Qa5 {[%clk 0:00:56.3]} 22. Kb1
{[%clk 0:01:14.1]} 22... Nf5 {[%clk 0:00:52.7]} 23. Qe5 {[%clk 0:01:09.4]} 23...
Qb6 {[%clk 0:00:46.4]} 24. g4 {[%clk 0:01:02.9]} 24... Nd6 {[%clk 0:00:44.5]}
25. Ka1 {[%clk 0:00:52.1]} 25... Rfe8 {[%clk 0:00:33.4]} 26. Re3 {[%clk
0:00:35.4]} 26... a5 {[%clk 0:00:31]} 27. Rb1 {[%clk 0:00:20.4]} 27... a4 {[%clk
0:00:30.7]} 28. Qd4 {[%clk 0:00:14.9]} 28... Qa6 {[%clk 0:00:29.8]} 29. Kb2
{[%clk 0:00:10.1]} 29... axb3 {[%clk 0:00:28.9]} 30. axb3 {[%clk 0:00:11]} 30...
Nxc4+ {[%clk 0:00:25.1]} 31. bxc4 {[%clk 0:00:10]} 31... Rxc4 {[%clk 0:00:26]}
32. Qe5 {[%clk 0:00:08.6]} 32... Nd7 {[%clk 0:00:23.8]} 33. Qg3 {[%clk
0:00:01.3]} 33... Rb8+ {[%clk 0:00:21]} 34. Qxb8+ {[%clk 0:00:01.4]} 34... Nxb8
{[%clk 0:00:21.9]} 0-1

[Event "Late-Titled-Tuesday-Blitz-February-27-2024"]
[Site "Chess.com"]
[Date "2024.02.27"]
[Round "6"]
[White "elchacal664"]
[Black "WilsonPalencia21"]
[Result "1-0"]
[WhiteElo "2433"]
[BlackElo "2561"]
[TimeControl "180+1"]
[EndTime "15:05:37 PST"]
[Termination "elchacal664 won by checkmate"]

1. Nf3 {[%clk 0:03:00.9]} 1... c5 {[%clk 0:02:50.6]} 2. g3 {[%clk 0:03:00.4]}
2... g6 {[%clk 0:02:50.3]} 3. Bg2 {[%clk 0:03:01.3]} 3... Bg7 {[%clk 0:02:49.7]}
4. O-O {[%clk 0:03:02.2]} 4... Nc6 {[%clk 0:02:46.6]} 5. e4 {[%clk 0:03:02]}
5... d6 {[%clk 0:02:46.7]} 6. Re1 {[%clk 0:03:00.6]} 6... e5 {[%clk 0:02:46.9]}
7. a3 {[%clk 0:02:58.8]} 7... Nge7 {[%clk 0:02:47]} 8. Nc3 {[%clk 0:02:58.8]}
8... O-O {[%clk 0:02:46]} 9. Rb1 {[%clk 0:02:59.2]} 9... a5 {[%clk 0:02:45.5]}
10. Nb5 {[%clk 0:02:58.2]} 10... h6 {[%clk 0:02:42.6]} 11. h3 {[%clk 0:02:57.5]}
11... Be6 {[%clk 0:02:42.5]} 12. d3 {[%clk 0:02:49.7]} 12... Qd7 {[%clk
0:02:40.8]} 13. Kh2 {[%clk 0:02:45.5]} 13... f5 {[%clk 0:02:40.8]} 14. exf5
{[%clk 0:02:41.2]} 14... gxf5 {[%clk 0:02:40.8]} 15. Nh4 {[%clk 0:02:33.6]}
15... Rae8 {[%clk 0:02:26.4]} 16. c4 {[%clk 0:02:29.9]} 16... Nd4 {[%clk
0:02:14.1]} 17. Nxd4 {[%clk 0:02:29.4]} 17... cxd4 {[%clk 0:02:14.5]} 18. b4
{[%clk 0:02:29.3]} 18... b5 {[%clk 0:02:07.7]} 19. bxa5 {[%clk 0:02:17.8]} 19...
bxc4 {[%clk 0:02:07.7]} 20. Rb7 {[%clk 0:02:15.9]} 20... Qd8 {[%clk 0:02:05.5]}
21. a6 {[%clk 0:02:14.5]} 21... cxd3 {[%clk 0:02:02.7]} 22. a7 {[%clk 0:02:13]}
22... e4 {[%clk 0:01:55.7]} 23. Qa4 {[%clk 0:02:01.9]} 23... Qa8 {[%clk
0:01:40]} 24. Rc7 {[%clk 0:01:44]} 24... Nd5 {[%clk 0:01:30.5]} 25. Rxg7+ {[%clk
0:01:43.4]} 25... Kxg7 {[%clk 0:01:30.5]} 26. Qxd4+ {[%clk 0:01:42.6]} 26... Nf6
{[%clk 0:01:30.5]} 27. g4 {[%clk 0:01:30.6]} 27... fxg4 {[%clk 0:01:21.1]} 28.
Bxe4 {[%clk 0:01:26.8]} 28... d5 {[%clk 0:01:14.8]} 29. Bxd3 {[%clk 0:01:18.9]}
29... Qc6 {[%clk 0:00:54.3]} 30. Qf4 {[%clk 0:01:04.2]} 30... Ng8 {[%clk
0:00:27]} 31. Bb2+ {[%clk 0:00:46.5]} 31... Nf6 {[%clk 0:00:24.1]} 32. hxg4
{[%clk 0:00:42.7]} 32... Kg8 {[%clk 0:00:18.8]} 33. Bxf6 {[%clk 0:00:37.7]}
33... Bd7 {[%clk 0:00:13.7]} 34. Rxe8 {[%clk 0:00:35.5]} 34... Bxe8 {[%clk
0:00:14.2]} 35. a8=Q {[%clk 0:00:31.2]} 35... Qxa8 {[%clk 0:00:12.8]} 36. Qxh6
{[%clk 0:00:30.9]} 36... Kf7 {[%clk 0:00:04.3]} 37. Qg7+ {[%clk 0:00:23.5]}
37... Ke6 {[%clk 0:00:04.6]} 38. Qe7# {[%clk 0:00:24.4]} 1-0

[Event "Late-Titled-Tuesday-Blitz-February-27-2024"]
[Site "Chess.com"]
[Date "2024.02.27"]
[Round "6"]
[White "manitodeplomo"]
[Black "MeisterJabo"]
[Result "1-0"]
[WhiteElo "2666"]
[BlackElo "2469"]
[TimeControl "180+1"]
[EndTime "15:05:40 PST"]
[Termination "manitodeplomo won on time"]

1. d4 {[%clk 0:03:00.9]} 1... Nf6 {[%clk 0:02:59.6]} 2. c4 {[%clk 0:03:00.1]}
2... e6 {[%clk 0:03:00.2]} 3. Nf3 {[%clk 0:02:58.8]} 3... d5 {[%clk 0:03:00.5]}
4. Nc3 {[%clk 0:02:58.7]} 4... Be7 {[%clk 0:03:00.8]} 5. Bg5 {[%clk 0:02:58.1]}
5... h6 {[%clk 0:02:59.6]} 6. Bxf6 {[%clk 0:02:57.7]} 6... Bxf6 {[%clk
0:03:00.5]} 7. Qc2 {[%clk 0:02:57.7]} 7... O-O {[%clk 0:03:00.5]} 8. O-O-O
{[%clk 0:02:57.1]} 8... c6 {[%clk 0:02:38.6]} 9. e4 {[%clk 0:02:54.9]} 9... dxe4
{[%clk 0:02:32.8]} 10. Qxe4 {[%clk 0:02:55.8]} 10... Nd7 {[%clk 0:02:05.2]} 11.
h4 {[%clk 0:02:54.6]} 11... Re8 {[%clk 0:01:36.2]} 12. Bd3 {[%clk 0:02:43.5]}
12... Nf8 {[%clk 0:01:36.1]} 13. g4 {[%clk 0:02:41.8]} 13... Rb8 {[%clk
0:00:56.3]} 14. g5 {[%clk 0:02:33.6]} 14... hxg5 {[%clk 0:00:54.3]} 15. hxg5
{[%clk 0:02:34.5]} 15... Bxg5+ {[%clk 0:00:55.2]} 16. Kc2 {[%clk 0:02:23.2]}
16... f5 {[%clk 0:00:55.7]} 17. Qe5 {[%clk 0:02:20.6]} 17... Bd7 {[%clk
0:00:44]} 18. Nxg5 {[%clk 0:02:17.3]} 18... Qxg5 {[%clk 0:00:44.9]} 19. Rdg1
{[%clk 0:02:17.4]} 19... Qe7 {[%clk 0:00:45.4]} 20. Rh2 {[%clk 0:02:07.4]} 20...
Qf7 {[%clk 0:00:31.9]} 21. Rhg2 {[%clk 0:02:06.4]} 21... g6 {[%clk 0:00:14.9]}
22. Rh2 {[%clk 0:02:05.8]} 22... Qg7 {[%clk 0:00:15.4]} 23. Qf4 {[%clk
0:01:41.9]} 23... e5 {[%clk 0:00:15.6]} 24. dxe5 {[%clk 0:01:41.3]} 24... Qxe5
{[%clk 0:00:16.3]} 25. Qh6 {[%clk 0:01:33]} 25... Qg7 {[%clk 0:00:16.4]} 26. Qf4
{[%clk 0:01:31.4]} 26... Qe5 {[%clk 0:00:16.1]} 27. Qh4 {[%clk 0:01:30.3]} 27...
Qg7 {[%clk 0:00:16.3]} 28. Rhg2 {[%clk 0:01:29.5]} 28... Re6 {[%clk 0:00:15.5]}
29. Ne2 {[%clk 0:01:28.7]} 29... Rd6 {[%clk 0:00:11.2]} 30. Nf4 {[%clk
0:01:28.2]} 30... Re8 {[%clk 0:00:11.6]} 31. c5 {[%clk 0:01:25.3]} 31... Rd4
{[%clk 0:00:11.1]} 32. b3 {[%clk 0:01:16.5]} 32... Re5 {[%clk 0:00:05.9]} 33.
Bc4+ {[%clk 0:01:14.8]} 33... Be6 {[%clk 0:00:05.5]} 34. Nxe6 {[%clk 0:01:12.5]}
34... Nxe6 {[%clk 0:00:03.4]} 35. Qh2 {[%clk 0:00:52.4]} 35... Rxc4+ {[%clk
0:00:02.8]} 36. bxc4 {[%clk 0:00:52.4]} 36... Nf8 {[%clk 0:00:02.4]} 37. Qf4
{[%clk 0:00:50.3]} 37... Rxc5 {[%clk 0:00:02.8]} 38. Kb3 {[%clk 0:00:47.4]}
38... Qf7 {[%clk 0:00:03.1]} 39. Qd4 {[%clk 0:00:38.3]} 39... Rb5+ {[%clk
0:00:03.2]} 40. Kc3 {[%clk 0:00:36.7]} 40... Ra5 {[%clk 0:00:03.1]} 41. Rh2
{[%clk 0:00:36]} 41... Ra3+ {[%clk 0:00:03.5]} 42. Kb2 {[%clk 0:00:35.9]} 1-0

[Event "Late-Titled-Tuesday-Blitz-February-27-2024"]
[Site "Chess.com"]
[Date "2024.02.27"]
[Round "6"]
[White "jcmesafischer"]
[Black "miraitrunks"]
[Result "1-0"]
[WhiteElo "2374"]
[BlackElo "2213"]
[TimeControl "180+1"]
[EndTime "15:05:40 PST"]
[Termination "jcmesafischer won by checkmate"]

1. e4 {[%clk 0:03:00.9]} 1... c5 {[%clk 0:03:00]} 2. Nf3 {[%clk 0:02:48.5]} 2...
d6 {[%clk 0:02:45.4]} 3. Bb5+ {[%clk 0:02:15.1]} 3... Bd7 {[%clk 0:02:28.9]} 4.
Bxd7+ {[%clk 0:02:13.8]} 4... Qxd7 {[%clk 0:02:29.8]} 5. c4 {[%clk 0:02:14]}
5... Nc6 {[%clk 0:02:21.2]} 6. d4 {[%clk 0:02:13.4]} 6... cxd4 {[%clk
0:02:22.1]} 7. Nxd4 {[%clk 0:02:14]} 7... g6 {[%clk 0:02:21.9]} 8. O-O {[%clk
0:02:12.1]} 8... Bg7 {[%clk 0:02:22.1]} 9. Be3 {[%clk 0:02:12]} 9... Nf6 {[%clk
0:02:19.5]} 10. f3 {[%clk 0:02:12.3]} 10... O-O {[%clk 0:02:19.1]} 11. Nc3
{[%clk 0:02:12.6]} 11... a6 {[%clk 0:02:09.2]} 12. Qd3 {[%clk 0:02:09.6]} 12...
Rac8 {[%clk 0:02:08.3]} 13. b3 {[%clk 0:02:07]} 13... Ne5 {[%clk 0:01:02]} 14.
Qd2 {[%clk 0:01:47.1]} 14... e6 {[%clk 0:00:42.6]} 15. Rfd1 {[%clk 0:01:30.6]}
15... Rfd8 {[%clk 0:00:41.8]} 16. h3 {[%clk 0:01:14.5]} 16... Nc6 {[%clk
0:00:35.8]} 17. Rac1 {[%clk 0:00:52.2]} 17... d5 {[%clk 0:00:29.5]} 18. exd5
{[%clk 0:00:50.1]} 18... exd5 {[%clk 0:00:29.4]} 19. c5 {[%clk 0:00:50.1]} 19...
Re8 {[%clk 0:00:25]} 20. Nxc6 {[%clk 0:00:47]} 20... bxc6 {[%clk 0:00:25.9]} 21.
Bd4 {[%clk 0:00:46.1]} 21... Qf5 {[%clk 0:00:19.1]} 22. Re1 {[%clk 0:00:40.5]}
22... Nh5 {[%clk 0:00:18.5]} 23. Bxg7 {[%clk 0:00:38.6]} 23... Kxg7 {[%clk
0:00:18.5]} 24. Ne2 {[%clk 0:00:20.5]} 24... Re7 {[%clk 0:00:14.2]} 25. g4
{[%clk 0:00:14.4]} 25... Qe5 {[%clk 0:00:10.5]} 26. gxh5 {[%clk 0:00:11.8]}
26... gxh5 {[%clk 0:00:09.8]} 27. Qd4 {[%clk 0:00:10.8]} 27... f6 {[%clk
0:00:09.4]} 28. Qxe5 {[%clk 0:00:10.6]} 28... fxe5 {[%clk 0:00:10.3]} 29. Kf2
{[%clk 0:00:11.1]} 29... Kf6 {[%clk 0:00:10.7]} 30. Ng3 {[%clk 0:00:11.1]} 30...
h4 {[%clk 0:00:11.2]} 31. Nf1 {[%clk 0:00:11.5]} 31... Kf5 {[%clk 0:00:11.6]}
32. Ne3+ {[%clk 0:00:11.1]} 32... Kf4 {[%clk 0:00:12.1]} 33. Rg1 {[%clk
0:00:10.8]} 33... d4 {[%clk 0:00:06.1]} 34. Rg4# {[%clk 0:00:10.7]} 1-0